[Event "Susha Chess Rapid Women 2022"]
[Site "Shusha"]
[Date "2022.09.23"]
[Round "7.1"]
[White "Mammadzada, Gunay"]
[Black "Efroimski, Marsel"]
[Result "1/2-1/2"]
[ECO "B30"]
[WhiteElo "2473"]
[BlackElo "2462"]
[Annotator "TA"]
[PlyCount "97"]
[EventDate "2022.09.21"]
[EventType "tourn"]
[EventCountry "AZE"]
[SourceTitle "playchess.com"]
[Source "ChessBase"]
[SourceQuality "1"]
[TimeControl "900+10"]

{[%evp 9,97,-4,0,-18,-14,-16,-8,-32,-30,-48,-43,-38,-35,-42,-29,-39,0,-27,24,-21,10,10,16,13,10,18,58,28,31,45,126,122,113,104,108,102,122,117,119,105,112,118,103,109,129,140,141,141,137,130,121,131,133,121,133,131,125,109,149,0,40,-22,-23,-31,2,2,8,8,54,8,18,14,14,8,44,8,14,24,27,0,0,0,0,7,10,-27,0,0,22,-27]} 1. e4 {[%emt 0:00:03]} c5 {[%emt 0:00:01]} 2. Nf3 Nc6 3. Bb5 {[%emt 0:00:28]} e5 {[%emt 0:00:01]} 4. c3 {[%emt 0:00:19]} Bd6 {[%emt 0:00:34] [#]} 5. a4 $146 {[%emt 0:00:40]} ({Predecessor:} 5. O-O Nge7 6. d4 cxd4 7. cxd4 exd4 8. Nxd4 O-O 9. Nc3 a6 10. Be2 Be5 11. Nf3 Bxc3 12. bxc3 {½-½ (43) Czakon,J (2475)-Piorun,K (2586) Poland 2015}) 5... a6 {[%emt 0:00:08]} (5... Nf6 {looks sharper.} 6. d4 cxd4 7. cxd4 Nxd4 8. Nxd4 exd4 9. Qxd4 Qc7) 6. Be2 {[%emt 0:00:44] B22: Sicilian: 2 c3.} Nf6 {[%emt 0:00:39]} 7. d3 {[%emt 0:00:02]} Be7 {[%emt 0:00:04]} 8. Nbd2 {[%emt 0:00:15]} d5 {[%emt 0:00:09]} 9. exd5 {[%emt 0:00:10]} Nxd5 {[%emt 0:00:04]} 10. Nc4 {[%emt 0:00:03]} Qc7 {[%emt 0:00:06]} 11. O-O {[%emt 0:00:31]} O-O {[%emt 0:00:05]} 12. Re1 {[%emt 0:00:17][%cal Oc4e5]} Bf5 {[%emt 0:03:00]} 13. Bf1 {[%emt 0:00:14][%cal Rf3e5]} Bf6 {[%emt 0:00:34]} (13... f6 $142) 14. Ng5 {[%emt 0:01:08]} b5 {[%emt 0:01:00]} 15. axb5 {[%emt 0:03:41]} axb5 {[%emt 0:00:03]} 16. Rxa8 {[%emt 0:00:22]} Rxa8 {[%emt 0:00:01]} 17. Qf3 {[%emt 0:02:07]} Nde7 {[%emt 0:03:25]} ({But not} 17... bxc4 18. Qxf5 g6 19. Qf3 $16) 18. Ne3 {[%emt 0:00:14]} Bxg5 {[%emt 0:00:39]} 19. Nxf5 {[%emt 0:00:02]} Nxf5 {[%emt 0:01:02]} (19... Ra1 $14 20. Nxe7+ Nxe7) 20. Bxg5 $16 {[%emt 0:00:02]} g6 {[%emt 0:00:40]} 21. g4 $36 {[%emt 0:00:25][%mdl 2048] White is on the roll.} Ng7 {[%emt 0:00:25]} 22. Bg2 {[%emt 0:00:29]} Rc8 {[%emt 0:00:36]} 23. Bf6 {[%emt 0:03:24] This bishop pair is nice.} Qd6 {[%emt 0:00:27]} 24. g5 {[%emt 0:00:51]} Nh5 {[%emt 0:00:53]} 25. Qd5 {[%emt 0:00:10]} Qxd5 {[%emt 0:00:16]} 26. Bxd5 {[%emt 0:00:02]} Nxf6 {[%emt 0:00:34]} 27. gxf6 {[%emt 0:00:02][%cal Of2f4][%mdl 4096] Endgame KRB-KRN} Nb8 {[%emt 0:02:03]} 28. Rxe5 {[%emt 0:00:30] [#] Hoping for Re7. White has more active pieces.} Nd7 {[%emt 0:00:02]} 29. Re7 {[%emt 0:00:43][%csl LRd7,LRf7]} Nxf6 {[%emt 0:00:02]} 30. Bxf7+ {[%emt 0:00:04]} Kf8 {[%emt 0:00:03] [#]} 31. Rb7 {[%emt 0:00:02]} Rd8 {[%emt 0:00:59]} 32. Bb3 {[%emt 0:00:44]} Nh5 {[%emt 0:00:21]} 33. Bc2 {[%emt 0:01:27]} Ra8 {[%emt 0:01:17]} 34. Rxh7 {[%emt 0:00:13]} (34. Kg2 $16) 34... Ra2 {[%emt 0:00:05]} 35. Rf7+ {[%emt 0:00:20]} Ke8 $11 {[%emt 0:00:16] And now ...Ra1+ would win.} 36. Bb3 {[%emt 0:00:02]} Rxb2 {[%emt 0:00:02]} 37. Bd5 {[%emt 0:00:02]} b4 {[%emt 0:00:30]} 38. cxb4 {[%emt 0:00:01]} cxb4 {[%emt 0:00:01]} (38... Rb1+ $11 39. Kg2 Rxb4) 39. Kg2 {[%emt 0:00:04]} (39. h4 $14) 39... g5 {[%emt 0:00:04] aiming for ...Nf4+.} 40. Rf5 {[%emt 0:00:39] Bf7+ is the strong threat.} Nf4+ {[%emt 0:00:02]} 41. Kg3 {[%emt 0:00:07]} Nxd3 {[%emt 0:00:09]} 42. Bc4 {[%emt 0:00:09]} Nc1 {[%emt 0:00:36]} 43. Rxg5 {[%emt 0:00:12]} Rc2 {[%emt 0:00:03]} 44. Bb5+ {[%emt 0:00:09]} Ke7 {[%emt 0:00:13]} 45. Ba4 {[%emt 0:00:01]} Ra2 {[%emt 0:00:07]} 46. Bd1 {[%emt 0:00:05]} Rd2 {[%emt 0:00:03]} 47. Ba4 {[%emt 0:00:10]} Ra2 {[%emt 0:00:09]} (47... b3 {deserves consideration.} 48. Bxb3 (48. Rb5 b2 $17) 48... Nxb3) 48. Bd1 {[%emt 0:00:19]} Rd2 {[%emt 0:00:10]} 49. Ba4 {[%emt 0:00:04] Weighted Error Value: White=0.15 (very precise) /Black=0.17 (very precise)} (49. Bf3 {is more appropriate.}) 1/2-1/2

[Event "Susha Chess Rapid Women 2022"]
[Site "Shusha"]
[Date "2022.09.23"]
[Round "7.2"]
[White "Ozturk Orenli, Kubra"]
[Black "Beydullayeva, Govhar"]
[Result "1-0"]
[ECO "A40"]
[WhiteElo "2319"]
[BlackElo "2346"]
[Annotator "TA"]
[PlyCount "87"]
[EventDate "2022.09.21"]
[EventType "tourn"]
[EventCountry "AZE"]
[SourceTitle "playchess.com"]
[Source "ChessBase"]
[SourceQuality "1"]
[TimeControl "900+10"]

{[%evp 21,87,0,0,-36,12,0,0,0,0,0,29,0,0,-103,-33,-32,-22,-32,-24,-32,-7,-116,-102,-155,-160,-158,-148,-354,-156,-159,0,-5,0,-1,-25,-157,-64,-87,-92,-108,-45,-35,-20,-56,-56,-62,-50,-61,0,0,1444,1383,1205,1042,29976,29968,29982,29983,29983,29984,29984,29985,29985,29986,29986,29987,29986,29985]} 1. d4 {[%emt 0:00:02]} Nf6 {[%emt 0:00:01]} 2. c4 {[%emt 0:00:02]} e6 {[%emt 0:00:02]} 3. g3 {[%emt 0:00:15]} d5 {[%emt 0:00:03]} 4. Nf3 {[%emt 0:00:06]} Bb4+ {[%emt 0:00:02]} 5. Bd2 {[%emt 0:00:05]} Be7 {[%emt 0:00:02]} 6. Bg2 {[%emt 0:00:08]} c6 {[%emt 0:00:03]} 7. O-O {[%emt 0:00:46]} O-O {[%emt 0:00:20]} 8. Qc2 {[%emt 0:00:16]} Nbd7 {[%emt 0:00:13]} 9. b3 {[%emt 0:00:48]} b6 {[%emt 0:00:01]} 10. Bc3 {[%emt 0:00:05]} Bb7 {[%emt 0:01:29]} 11. Nbd2 {[%emt 0:00:57]} c5 {[%emt 0:00:01] [#]} 12. cxd5 $146 {[%emt 0:00:16] E11: Bogo-Indian.} ({Predecessor:} 12. dxc5 Bxc5 13. Qb2 Rc8 14. cxd5 Bxd5 15. b4 Be7 16. Rac1 Rc7 17. Bd4 Qb8 18. Rxc7 Qxc7 19. Rc1 Qb7 {½-½ (50) Papaioannou,I (2634)-Kelires,A (2528) Thessaloniki 2022}) 12... exd5 {[%emt 0:01:34]} (12... Nxd5 $15 13. Bb2 Rc8) 13. e3 {[%emt 0:01:35]} Rc8 {[%emt 0:00:28]} 14. Qb2 {[%emt 0:00:21] The position is equal.} Re8 {[%emt 0:00:35]} 15. Rfd1 {[%emt 0:00:13]} Nf8 {[%emt 0:00:50]} 16. Nh4 {[%emt 0:01:22]} Qd7 {[%emt 0:04:16]} 17. e4 {[%emt 0:02:02]} (17. Nhf3 $11 {keeps the balance.}) 17... cxd4 {[%emt 0:01:04]} (17... Nxe4 $17 18. Nxe4 dxe4 19. dxc5 Qg4) 18. Bxd4 $15 {[%emt 0:00:03]} dxe4 {[%emt 0:00:04] Threatens to win with ...Qe6.} 19. Nc4 {[%emt 0:02:07]} Qe6 {[%emt 0:00:21]} 20. Ne3 $1 {[%emt 0:00:15] aiming for Nhf5.} g6 {[%emt 0:00:36] Against Nhf5. With the idea ...Nd5.} 21. a4 {[%emt 0:00:42]} (21. Bf1 $1 $11) 21... N8d7 {[%emt 0:00:41]} 22. b4 {[%emt 0:00:26] [#] Against Nc5} ({White should try} 22. Bf1) 22... Nd5 $1 $17 {[%emt 0:01:51]} 23. Nxd5 {[%emt 0:00:29]} Bxd5 {[%emt 0:00:01]} 24. a5 $2 {[%emt 0:00:23]} (24. Bf1 $17 {was worth a try.}) 24... bxa5 {[%emt 0:00:44]} (24... g5 $19 25. Qe2 gxh4 26. axb6 axb6) 25. Rxa5 {[%emt 0:00:18]} Qg4 $2 {[%emt 0:01:11]} (25... Red8 $17 {Strongly threatening ...g5.} 26. Qa1 Bc4 27. Rxa7 Bxb4) 26. Re1 $1 $132 {[%emt 0:00:50][%mdl 2048] White puts up resistance} Ba8 {[%emt 0:00:14]} 27. h3 {[%emt 0:01:08]} Qe6 {[%emt 0:00:01]} 28. Bxa7 {[%emt 0:00:21]} (28. Rxa7 $11 Bd5 29. Bf1 (29. Bh8 $2 f6 $19)) 28... Bxh4 {[%emt 0:00:21]} (28... Rc4 $17 29. Rd1 Bxb4) 29. gxh4 $15 {[%emt 0:00:03]} Ne5 {[%emt 0:00:13]} 30. Qe2 {[%emt 0:01:52]} Nd3 {[%emt 0:01:43]} (30... Qe7 $17 31. Rb1 Qxh4) 31. Rb1 {[%emt 0:01:25]} Nf4 {[%emt 0:00:03][%csl LRe2,LRh3]} 32. Qe3 {[%emt 0:00:13]} Nxg2 {[%emt 0:00:43]} 33. Kxg2 {[%emt 0:00:02]} Rcd8 {[%emt 0:00:33] ...Rd3 is the strong threat.} 34. Bd4 $1 {[%emt 0:00:18] [#]} f5 {[%emt 0:00:13]} ({Better is} 34... Rxd4 $1 $15 35. Qxd4 e3+ 36. Kh2 (36. Rxa8 Qc6+ 37. Kg1 exf2+ 38. Qxf2 Qxa8 $15) 36... Qc6) 35. Ra7 $11 {[%emt 0:00:11] Black must now prevent Rg7+.} Rxd4 $4 {[%mdl 8192]} 36. Qxd4 $18 {[%emt 0:00:05][%csl Ga7][%cal Rd4g7]} e3+ {[%emt 0:00:13]} 37. f3 {[%emt 0:00:08]} Bxf3+ {[%emt 0:00:10]} 38. Kxf3 {[%emt 0:00:23][%csl Ga7][%cal Rd4g7] White mates.} Qc6+ {[%emt 0:00:00]} 39. Kg3 {[%emt 0:00:04][%csl Ga7][%cal Rd4g7]} f4+ {[%emt 0:00:05]} 40. Qxf4 {[%emt 0:00:27]} ({Not} 40. Kxf4 Rf8+ 41. Kxe3 Qf3+ 42. Kd2 Qg2+ 43. Kc3 Rc8+ 44. Kb3 Qc2+ 45. Ka3 Rc3+ 46. Qxc3 Qxc3+ 47. Ka2 Qc4+ 48. Rb3 Qc2+ 49. Ka3 Qc1+ 50. Ka4 Qc6+ 51. Ka5 Qd5+ 52. Ka4 Qc6+ 53. Ka5 Qd5+ 54. Ka4 Qc6+ $11) 40... Rf8 {[%emt 0:00:24]} 41. Qxe3 {[%emt 0:00:10]} Qd6+ {[%emt 0:00:03]} 42. Kg2 {[%emt 0:00:02]} Qc6+ {[%emt 0:00:19]} 43. Kg1 {[%emt 0:00:15]} Qd5 {[%emt 0:00:17]} 44. Qb3 {[%emt 0:00:09] What a bad dream for Black.  Weighted Error Value: White=0.27 (precise) /Black=0.48} 1-0

[Event "Susha Chess Rapid Women 2022"]
[Site "Shusha"]
[Date "2022.09.23"]
[Round "7.3"]
[White "Dzagnidze, Nana"]
[Black "Fataliyeva, Ulviyya"]
[Result "1-0"]
[ECO "D10"]
[WhiteElo "2526"]
[BlackElo "2408"]
[Annotator "TA"]
[PlyCount "59"]
[EventDate "2022.09.21"]
[EventType "tourn"]
[EventCountry "AZE"]
[SourceTitle "playchess.com"]
[Source "ChessBase"]
[SourceQuality "1"]
[TimeControl "900+10"]

{[%evp 9,59,62,64,58,58,71,80,62,85,83,89,81,103,99,126,122,110,120,122,133,143,148,144,142,245,241,266,272,276,270,495,477,621,583,723,721,716,699,672,658,897,876,1016,1011,995,979,971,917,1904,1800,3193,2894]} 1. c4 {[%emt 0:00:03]} c6 {[%emt 0:00:10]} 2. d4 {[%emt 0:00:17]} d5 {[%emt 0:00:02]} 3. cxd5 {[%emt 0:00:02]} Nf6 {[%emt 0:00:02]} 4. dxc6 {[%emt 0:00:33]} Nxc6 {[%emt 0:00:01]} 5. Nf3 {[%emt 0:00:46]} e5 {[%emt 0:00:01]} 6. Nxe5 {[%emt 0:03:15] D10: Slav Defence: 3 cxd5 (without early Nf3) and 3 Nc3.} (6. dxe5 {feels hotter.} Qxd1+ 7. Kxd1 Ng4 8. Ke1) 6... Nxe5 {[%emt 0:02:36]} 7. dxe5 {[%emt 0:00:03]} Qxd1+ {[%emt 0:00:03]} 8. Kxd1 {[%emt 0:00:01] White is better.} Ne4 {[%emt 0:02:17]} 9. Ke1 {[%emt 0:01:30]} Bb4+ {[%emt 0:00:01]} 10. Nd2 {[%emt 0:03:05]} O-O {[%emt 0:00:22] [#]} 11. f3 $5 $146 {[%emt 0:00:45][%mdl 8] New and interesting.} ({Predecessor:} 11. a3 Bxd2+ 12. Bxd2 Nxd2 13. Kxd2 Rd8+ 14. Ke3 Re8 15. f4 f6 {0-1 (15) Goodis,J (2030)-Zaunercik,I (1783) FICGS email 2020}) 11... Nxd2 {[%emt 0:00:28]} 12. Bxd2 {[%emt 0:00:01]} Bxd2+ {[%emt 0:00:01]} 13. Kxd2 {[%emt 0:00:02]} Rd8+ {[%emt 0:00:03]} 14. Ke3 {[%emt 0:00:58]} Be6 {[%emt 0:00:21]} 15. g3 {[%emt 0:00:14]} Rac8 {[%emt 0:00:20]} 16. Bg2 {[%emt 0:00:01]} h6 {[%emt 0:05:23]} (16... f6 $16 17. exf6 Re8) 17. Rhc1 $18 {[%emt 0:01:18]} Rxc1 {[%emt 0:00:27]} 18. Rxc1 {[%emt 0:00:02]} Bxa2 {[%emt 0:00:01][%mdl 4096] Endgame KRB-KRB} 19. f4 {[%emt 0:00:09]} Rd7 $2 {[%emt 0:01:24] [#]} (19... Be6 20. Rc7 Rd7 21. Rxb7 Rxb7 22. Bxb7 Bc4) 20. Ra1 {[%emt 0:00:14] White is clearly winning.} Bc4 {[%emt 0:00:14]} 21. Rxa7 {[%emt 0:00:04]} Ba6 {[%emt 0:00:00]} 22. Ra8+ {[%emt 0:00:22]} Kh7 {[%emt 0:00:01]} 23. Be4+ {[%emt 0:00:05]} g6 {[%emt 0:00:01]} 24. Bd3 {[%emt 0:00:13]} Bxd3 {[%emt 0:00:07]} 25. exd3 {[%emt 0:00:02][%cal Be2d3,Bd3d4][%mdl 32] KR-KR} Rd5 {[%emt 0:00:00]} 26. b4 {[%emt 0:00:28]} Rb5 {[%emt 0:00:06]} 27. Ra4 {[%emt 0:00:02]} g5 {[%emt 0:00:03]} 28. Ke4 {[%emt 0:00:04]} f6 {[%emt 0:00:25]} 29. d4 {[%emt 0:00:21]} fxe5 {[%emt 0:00:10]} 30. fxe5 {[%emt 0:00:03] Black got outplayed after the opening.  Weighted Error Value: White=0.01 (flawless) /Black=0.40} 1-0

[Event "Susha Chess Rapid Women 2022"]
[Site "Shusha"]
[Date "2022.09.23"]
[Round "7.4"]
[White "Arabidze, Meri"]
[Black "Balajayeva, Khanim"]
[Result "1/2-1/2"]
[ECO "D26"]
[WhiteElo "2422"]
[BlackElo "2379"]
[Annotator "TA"]
[PlyCount "103"]
[EventDate "2022.09.21"]
[EventType "tourn"]
[EventCountry "AZE"]
[SourceTitle "playchess.com"]
[Source "ChessBase"]
[SourceQuality "1"]
[TimeControl "900+10"]

{[%evp 24,103,34,14,14,11,20,14,17,14,12,19,29,25,79,66,72,53,122,127,140,117,127,142,126,131,161,161,161,161,161,161,158,158,165,165,158,157,157,156,256,256,384,250,287,287,413,410,414,392,345,291,532,521,484,464,438,437,467,464,400,59,59,56,52,20,20,0,4,0,0,0,4,0,0,0,0,0,0,0,0,0]} 1. d4 {[%emt 0:00:02]} d5 {[%emt 0:00:01]} 2. c4 {[%emt 0:00:01]} dxc4 {[%emt 0:00:01]} 3. Nf3 {[%emt 0:00:02]} Nf6 {[%emt 0:00:02]} 4. e3 {[%emt 0:00:02]} e6 {[%emt 0:00:01]} 5. Bxc4 {[%emt 0:00:02]} a6 {[%emt 0:00:01]} 6. O-O {[%emt 0:00:04]} c5 {[%emt 0:00:01]} 7. b3 {[%emt 0:00:11]} Nbd7 {[%emt 0:00:04]} 8. Bb2 {[%emt 0:00:06]} Be7 {[%emt 0:00:02]} 9. Nbd2 {[%emt 0:00:14]} O-O {[%emt 0:00:03]} 10. Rc1 {[%emt 0:00:09]} b5 {[%emt 0:01:01]} 11. Be2 {[%emt 0:00:02]} Bb7 {[%emt 0:00:06]} 12. a4 {[%emt 0:00:13]} b4 {[%emt 0:00:08]} 13. Nc4 {[%emt 0:00:08]} Rc8 {[%emt 0:00:05] D27: Queen's Gambit Accepted: Classical main line: 7 e4!? and 7 a4.} 14. Nfe5 {[%emt 0:00:09]} cxd4 {[%emt 0:00:15]} 15. Qxd4 {[%emt 0:00:02]} Nc5 {[%emt 0:02:23]} 16. Qxd8 {[%emt 0:00:04]} Rfxd8 {[%emt 0:00:27]} 17. Na5 {[%emt 0:00:01]} Bd5 {[%emt 0:01:03] [#]} 18. f3 $146 {[%emt 0:00:02] Prevents Nfe4.} ({Predecessor:} 18. Nec4 Nfd7 19. Nd2 Bf6 20. Bd4 e5 21. Ba1 e4 22. Bxf6 Nxf6 23. Ndc4 Nd3 24. Rcd1 Bxc4 25. Nxc4 {½-½ (32) Rodshtein,M (2678)-Adhiban,B (2671) Linares 2018}) 18... Nxb3 {[%emt 0:02:43]} (18... Re8 $11 {keeps the balance.}) 19. Nxb3 $16 {[%emt 0:01:56]} Bxb3 {[%emt 0:00:02]} 20. Nc6 {[%emt 0:00:02]} Rxc6 {[%emt 0:03:11]} 21. Rxc6 {[%emt 0:00:01]} Rd2 {[%emt 0:00:36]} 22. Rc8+ {[%emt 0:04:34]} Bf8 {[%emt 0:00:02]} 23. Bxf6 {[%emt 0:00:18]} gxf6 {[%emt 0:00:01]} 24. Bxa6 {[%emt 0:00:02]} Bxa4 {[%emt 0:00:22]} 25. Ra1 {[%emt 0:00:45]} Bc2 {[%emt 0:01:25]} 26. Bc4 {[%emt 0:00:44]} Kg7 {[%emt 0:00:33] [#]} 27. Ra7 $1 {[%emt 0:01:08] Bxe6 is the strong threat.} b3 {[%emt 0:00:45] White must now prevent ...b2.} 28. Rb7 {[%emt 0:01:07]} Rd1+ {[%emt 0:02:30]} 29. Kf2 {[%emt 0:00:01]} Rd2+ {[%emt 0:00:01]} 30. Ke1 {[%emt 0:03:25] White is more active.} Rxg2 {[%emt 0:00:06]} 31. Bxe6 $1 {[%emt 0:00:41]} ({Don't take} 31. Bxb3 Bxb3 32. Rxb3 Bd6 $16) 31... Bg6 {[%emt 0:00:29]} (31... Bb4+ $16 32. Kf1 (32. Rxb4 fxe6 33. Rb7+ Kh6 $18) 32... b2 33. Rxb4 Rxh2) 32. Bxb3 $18 {[%emt 0:00:28]} Bd6 {[%emt 0:00:31]} (32... Rb2 $142 33. h4 Rb1+ 34. Kf2 Rb2+ 35. Kg3 Re2) 33. f4 {[%emt 0:01:03] Hoping for Rc6.} Rxh2 {[%emt 0:01:00]} 34. Rc6 {[%emt 0:00:08]} Ba3 {[%emt 0:00:20] [#]} (34... Rh1+ {was necessary.} 35. Kf2 Rh2+ 36. Kf3 Rd2) 35. Bxf7 $1 {[%emt 0:00:49][%mdl 512]} Bxf7 {[%emt 0:00:18]} 36. Rcc7 {[%emt 0:00:00]} Kg6 {[%emt 0:00:02] And now ...Bd5 would win.} (36... Rh1+ $2 37. Kf2) 37. Rxf7 {[%emt 0:00:03][%mdl 4096] Endgame KRR-KRB} Kf5 $2 {[%emt 0:00:07]} (37... Bc1 {was called for.} 38. e4 Bxf4 39. Rg7+ Kh5 40. Rxh7+ Bh6) 38. Rxh7 {[%emt 0:00:13]} Ra2 {[%emt 0:00:13]} 39. Kd1 {[%emt 0:01:21]} Ke4 {[%emt 0:00:11]} 40. Rb3 {[%emt 0:00:42] Strongly threatening Ra7.} Bc5 {[%emt 0:00:19] Against Ra7} 41. Rc7 {[%emt 0:00:02]} Ba7 {[%emt 0:00:13]} 42. Rc4+ $2 {[%emt 0:00:34]} (42. Re7+ $18 Kf3 43. Re6) 42... Kf3 $14 {[%emt 0:00:05]} 43. Rcc3 {[%emt 0:00:22]} f5 {[%emt 0:00:17]} 44. Rb5 {[%emt 0:00:14]} Bxe3 {[%emt 0:00:09] The position is equal.} 45. Re5 {[%emt 0:00:10]} Rd2+ {[%emt 0:00:01]} 46. Ke1 {[%emt 0:00:09]} Re2+ {[%emt 0:00:01]} 47. Kd1 $1 {[%emt 0:00:01]} Rd2+ $1 {[%emt 0:00:01]} 48. Ke1 {[%emt 0:00:11]} Re2+ {[%emt 0:00:00]} 49. Kf1 {[%emt 0:00:11]} Rf2+ $1 {[%emt 0:00:01]} 50. Kg1 {[%emt 0:00:14]} Re2+ {[%emt 0:00:01]} 51. Kf1 {[%emt 0:00:13]} Rf2+ $1 {[%emt 0:00:01]} 52. Ke1 {Blacks defense is rewarded with a draw.  Weighted Error Value: White=0.20 (precise) /Black=0.29 (precise)} 1/2-1/2

[Event "Susha Chess Rapid Women 2022"]
[Site "Shusha"]
[Date "2022.09.23"]
[Round "7.5"]
[White "Mammadova, Gulnar"]
[Black "Zawadzka, Jolanta"]
[Result "1-0"]
[ECO "B46"]
[WhiteElo "2382"]
[BlackElo "2401"]
[Annotator "TA"]
[PlyCount "53"]
[EventDate "2022.09.21"]
[EventType "tourn"]
[EventCountry "AZE"]
[SourceTitle "playchess.com"]
[Source "ChessBase"]
[SourceQuality "1"]
[TimeControl "900+10"]

{[%evp 13,53,27,44,17,66,65,62,68,63,52,99,100,124,127,210,129,200,182,319,313,331,328,315,318,479,470,447,425,561,571,782,775,729,535,508,528,766,775,29979,11747,29990,3392]} 1. e4 {[%emt 0:00:02]} c5 {[%emt 0:00:01]} 2. Nf3 {[%emt 0:00:02]} e6 {[%emt 0:00:01]} 3. d4 {[%emt 0:00:02]} cxd4 {[%emt 0:00:02]} 4. Nxd4 {[%emt 0:00:01]} Nc6 {[%emt 0:00:01]} 5. Nc3 {[%emt 0:00:03]} a6 {[%emt 0:00:01]} 6. Nxc6 {[%emt 0:00:11]} bxc6 {[%emt 0:00:02]} 7. Bd3 {[%emt 0:00:02]} d5 {[%emt 0:00:02]} 8. Qe2 {[%emt 0:00:21] B46: Sicilian: Taimanov: 5 Nc3 a6.} d4 {[%emt 0:01:29]} (8... Bb7 $11) 9. Nb1 $14 {[%emt 0:00:31][%cal Bc3b1,Bb1d2,Bd2c4][%mdl 32]} e5 {[%emt 0:00:23]} 10. O-O {[%emt 0:00:05] [#] White is slightly better.} Bd6 $146 {[%emt 0:00:16]} ({Predecessor:} 10... Ne7 11. f4 exf4 12. Bxf4 Ng6 13. Bg3 Bc5 14. Nd2 O-O 15. Nc4 Be6 16. Kh1 Ra7 {0-1 (33) Fernandez Aransay,F (1826)-Chilton,J (1742) London 2015}) 11. f4 {[%emt 0:00:22]} Qc7 {[%emt 0:00:58]} (11... Bc7 $14 {should be considered.}) 12. Nd2 $16 {[%emt 0:00:56]} Ne7 {[%emt 0:00:46]} 13. Nc4 {[%emt 0:00:35] Black must now prevent Qh5.} a5 {[%emt 0:06:49]} (13... Be6 $16 14. Qh5 (14. Nxe5 Bxe5 15. fxe5 O-O $16) (14. fxe5 Bxe5 15. Nxe5 Qxe5 $16) 14... h6 15. fxe5 Bc5 16. Nd6+ Bxd6 17. exd6 Qxd6) 14. a4 {[%emt 0:01:14]} (14. Nxe5 $6 Bxe5 15. fxe5 O-O $14) 14... Bd7 {[%emt 0:01:44] [#]} (14... Be6 $16) 15. Qh5 $1 $18 {[%emt 0:01:03][%cal Rf4e5]} ({But not} 15. Nxe5 $6 Bxe5 16. fxe5 O-O $14) 15... g6 {[%emt 0:00:24]} (15... O-O {was worth a try.} 16. f5 (16. Nxe5 Bxe5 17. fxe5 Ng6 $14) (16. fxe5 Bb4 $16) 16... f6 17. Nxd6 Qxd6 18. Bc4+ Kh8) 16. Qg5 {[%emt 0:01:00]} Be6 {[%emt 0:01:29]} 17. Nxd6+ {[%emt 0:01:50]} ({Less strong is} 17. Nxe5 O-O $16) 17... Qxd6 {[%emt 0:00:02]} 18. fxe5 {[%emt 0:00:02]} Qc5 {[%emt 0:00:30]} (18... Qc7 $142 19. Rb1 h6) 19. b3 {[%emt 0:00:13][%cal Bb2b3,Bb3c4,Bc4c5][%mdl 32]} Ng8 {[%emt 0:02:36]} 20. Ba3 {[%emt 0:00:41]} Qb6 {[%emt 0:00:17]} 21. Bc4 {[%emt 0:01:32]} Bxc4 {[%emt 0:00:33]} 22. bxc4 {[%emt 0:00:01][%cal Of1f7] [#] aiming for Rxf7!} d3+ {[%emt 0:00:06]} 23. c5 {[%emt 0:00:43]} Qd8 {[%emt 0:00:02]} 24. Qf4 {[%emt 0:00:02][%csl Gf1][%cal Rf4f7]} Ra7 {[%emt 0:00:09]} 25. cxd3 {[%emt 0:00:48]} Qxd3 {[%emt 0:00:06]} 26. e6 {[%emt 0:00:15]} Kf8 {[%emt 0:00:28]} 27. Qb8+ {[%emt 0:00:23] White took control after the opening.  Weighted Error Value: White=0.26 (precise) /Black=1.09} (27. Bb2 $142 Qd8 28. exf7 Nf6 29. Rad1 Rd7 30. Bxf6 Rxd1 31. Bxd8 Rxd8 32. Qf6) 1-0